[Event "IIFL Wealth  4th Mumbai Junior U-13"]
[Site "Mumbai"]
[Date "2019.01.07"]
[Round "9"]
[White "Renganayaki V"]
[Black "Arhan Chethan Anand"]
[Result "1/2-1/2"]
[ECO "D47"]
[WhiteElo "1376"]
[BlackElo "1710"]
[Annotator "NA RC"]
[PlyCount "145"]
[EventDate "2018.12.30"]
[EventType "swiss"]
[EventCountry "IND"]
[SourceTitle "playchess.com"]
[Source "ChessBase"]
[SourceQuality "1"]
[TimeControl "40/5400+30:1800+30"]

1. d4 {[%emt 0:00:48]} d5 {[%emt 0:00:00]} 2. c4 {[%emt 0:00:13]} e6 {[%emt 0:00:00]} 3. Nc3 {[%emt 0:00:15]} c6 {[%emt 0:00:00]} 4. e3 {[%emt 0:01:16]} Nf6 {[%emt 0:00:00]} 5. Nf3 {[%emt 0:00:04]} Nbd7 {[%emt 0:00:25]} 6. Bd3 {[%emt 0:00:19]} dxc4 {[%emt 0:00:58]} 7. Bxc4 {[%emt 0:00:04]} Be7 {[%emt 0:00:37]} 8. O-O {[%emt 0:01:32]} O-O {[%emt 0:01:14]} 9. Re1 {[%emt 0:07:15]} b5 {[%emt 0:03:05]} 10. Bd3 {[%emt 0:00:31]} Bb7 {[%emt 0:01:12]} 11. e4 {[%emt 0:07:08]} a6 {[%emt 0:01:58]} 12. Bg5 {[%emt 0:05:21]} h6 {[%emt 0:06:55]} 13. Bf4 {[%emt 0:08:12]} Re8 {[%emt 0:07:24]} 14. e5 {[%emt 0:06:52]} Nd5 {[%emt 0:00:08]} 15. Nxd5 {[%emt 0:00:34]} cxd5 {[%emt 0:00:26]} 16. Bd2 {[%emt 0:04:49]} Qb6 {[%emt 0:09:09]} 17. Rc1 {[%emt 0:01:53]} Rec8 {[%emt 0:06:22]} 18. Qe2 {[%emt 0:04:48]} Nf8 {[%emt 0:01:48]} 19. Rxc8 {[%emt 0:03:23]} Rxc8 {[%emt 0:00:07]} 20. Rc1 {[%emt 0:00:19]} Rxc1+ {[%emt 0:07:44]} 21. Bxc1 {[%emt 0:00:29]} Qc7 {[%emt 0:00:31]} 22. Qc2 {[%emt 0:00:58]} Qxc2 {[%emt 0:05:42]} 23. Bxc2 {[%emt 0:01:05]} Nd7 {[%emt 0:00:43]} 24. b3 {[%emt 0:11:01]} Bd8 {[%emt 0:09:20]} 25. Kf1 {[%emt 0:02:34]} Bc7 {[%emt 0:01:57]} 26. Ke2 {[%emt 0:02:30]} f6 {[%emt 0:06:49]} 27. exf6 {[%emt 0:00:35]} Nxf6 {[%emt 0:01:37]} 28. Ne5 {[%emt 0:07:50]} Kf8 {[%emt 0:04:18]} 29. Ba3+ {[%emt 0:01:36]} Kg8 {[%emt 0:02:37]} 30. Ng6 {[%emt 0:05:29]} Nd7 {[%emt 0:07:04]} 31. f4 {[%emt 0:09:35]} a5 32. g3 {[%emt 0:01:48]} b4 {[%emt 0:07:47]} 33. Bb2 {[%emt 0:00:06]} Kf7 {[%emt 0:01:22]} 34. Ne5+ {[%emt 0:00:18]} Bxe5 {[%emt 0:01:11]} 35. fxe5 {[%emt 0:00:29]} Ba6+ {[%emt 0:00:15]} 36. Ke3 {[%emt 0:01:19]} Nb6 {[%emt 0:00:14]} 37. a3 {[%emt 0:01:34]} bxa3 {[%emt 0:01:04]} 38. Bxa3 {[%emt 0:00:04]} a4 {[%emt 0:00:20]} 39. Bc5 {[%emt 0:00:57]} axb3 {[%emt 0:00:23]} 40. Bxb3 {[%emt 0:00:00]} Nd7 {[%emt 0:00:00]} 41. Bd6 {[%emt 0:00:28]} Bb5 {[%emt 0:01:55]} 42. Bb4 {[%emt 0:01:19]} Nb8 {[%emt 0:01:16]} 43. Bc5 {[%emt 0:05:19]} Nc6 {[%emt 0:00:44]} 44. Kd2 {[%emt 0:05:19]} Na5 {[%emt 0:02:27]} 45. Kc3 {[%emt 0:01:29]} Nxb3 {[%emt 0:01:21]} 46. Kxb3 {[%emt 0:00:42]} Kg6 {[%emt 0:00:20]} 47. Kc3 {[%emt 0:04:15]} Kf5 {[%emt 0:01:21]} 48. Kd2 {[%emt 0:00:26]} Kg4 {[%emt 0:04:27]} 49. Ke3 {[%emt 0:00:37]} g5 {[%emt 0:03:33]} 50. Kf2 {[%emt 0:00:08]} Kh3 {[%emt 0:01:12]} 51. Kg1 {[%emt 0:00:06]} Bd3 {[%emt 0:00:45]} 52. Bb6 {[%emt 0:00:10]} g4 {[%emt 0:00:40]} 53. Bc5 {[%emt 0:00:07]} Bc4 {[%emt 0:00:05]} 54. Bb6 {[%emt 0:00:03]} Bb5 {[%emt 0:00:02]} 55. Ba7 {[%emt 0:00:05]} Ba6 {[%emt 0:00:04]} 56. Bb6 {[%emt 0:00:05]} Bb5 {[%emt 0:00:06]} 57. Bc5 {[%emt 0:00:03]} Be2 {[%emt 0:00:07]} 58. Bb6 {[%emt 0:00:04]} Ba6 {[%emt 0:00:06]} 59. Bc5 {[%emt 0:00:03]} Bd3 {[%emt 0:00:04]} 60. Bb6 {[%emt 0:00:07]} Be4 {[%emt 0:00:06]} 61. Bc5 {[%emt 0:00:05]} Bf3 {[%emt 0:00:48]} 62. Bb6 {[%emt 0:00:04]} Bg2 {[%emt 0:00:03]} 63. Bc5 {[%emt 0:00:04]} Be4 {[%emt 0:00:06]} 64. Bb6 {[%emt 0:00:06]} Bb1 {[%emt 0:00:03]} 65. Bc5 {[%emt 0:00:07]} Ba2 {[%emt 0:00:02]} 66. Bb6 {[%emt 0:00:05]} Bc4 {[%emt 0:00:04]} 67. Bc5 {[%emt 0:00:03]} Ba6 {[%emt 0:00:05]} 68. Ba7 Bd3 {[%emt 0:00:06]} 69. Bc5 {[%emt 0:00:08]} h5 {[%emt 0:00:03]} 70. Be7 {[%emt 0:00:12]} Bc4 {[%emt 0:00:17]} 71. Bf6 {[%emt 0:00:02]} Bd3 {[%emt 0:00:12]} 72. Be7 {[%emt 0:00:07]} Be4 {[%emt 0:00:10]} 73. Bf6 {[%emt 0:00:02]} 1/2-1/2

[Event "IIFL Wealth  4th Mumbai Junior U-13"]
[Site "Mumbai"]
[Date "2019.01.07"]
[Round "9"]
[White "Vaval Aaditi"]
[Black "Mahajan Ayush"]
[Result "1/2-1/2"]
[ECO "C54"]
[WhiteElo "1367"]
[BlackElo "1629"]
[Annotator "NA RC"]
[PlyCount "141"]
[EventDate "2018.12.30"]
[EventType "swiss"]
[EventCountry "IND"]
[SourceTitle "playchess.com"]
[Source "ChessBase"]
[SourceQuality "1"]
[TimeControl "40/5400+30:1800+30"]

1. e4 e5 {[%emt 0:14:27]} 2. d4 {[%emt 0:00:00]} exd4 {[%emt 0:00:10]} 3. Nf3 {[%emt 0:00:00]} Nc6 {[%emt 0:00:11]} 4. Bc4 {[%emt 0:00:03]} Bc5 {[%emt 0:00:05]} 5. c3 {[%emt 0:00:21]} Nf6 {[%emt 0:00:05]} 6. e5 {[%emt 0:01:09]} d5 {[%emt 0:01:42]} 7. Bb5 {[%emt 0:00:23]} Ne4 {[%emt 0:00:08]} 8. Nxd4 {[%emt 0:00:58]} O-O {[%emt 0:00:53]} 9. Bxc6 bxc6 {[%emt 0:00:10]} 10. O-O {[%emt 0:00:43]} Ba6 {[%emt 0:03:38]} 11. Re1 {[%emt 0:02:34]} f6 {[%emt 0:07:26]} 12. e6 {[%emt 0:12:28]} Re8 {[%emt 0:18:39]} 13. f3 {[%emt 0:13:04]} Ng5 {[%emt 0:00:28]} 14. Bxg5 {[%emt 0:00:06]} fxg5 {[%emt 0:00:11]} 15. Kh1 {[%emt 0:00:35]} Bxd4 {[%emt 0:00:22]} 16. Qxd4 {[%emt 0:00:28]} Qf6 {[%emt 0:01:30]} 17. Qa4 {[%emt 0:12:59]} Rxe6 {[%emt 0:00:51]} 18. Nd2 {[%emt 0:00:24]} Bb5 {[%emt 0:00:21]} 19. Qg4 {[%emt 0:00:47]} Rae8 {[%emt 0:00:16]} 20. Red1 {[%emt 0:03:36]} Qe5 {[%emt 0:03:53]} 21. h3 {[%emt 0:01:04]} Qf4 {[%emt 0:17:53]} 22. Qxf4 {[%emt 0:01:23]} gxf4 {[%emt 0:00:07]} 23. Nb3 {[%emt 0:00:33]} Re2 {[%emt 0:00:26]} 24. Rab1 {[%emt 0:00:46]} Ba4 {[%emt 0:00:20]} 25. Rd4 {[%emt 0:00:42]} Bxb3 {[%emt 0:01:51]} 26. axb3 {[%emt 0:00:10]} g5 {[%emt 0:00:05]} 27. Ra4 {[%emt 0:00:26]} Ra8 {[%emt 0:16:11]} 28. Ra6 {[%emt 0:00:20]} Re6 {[%emt 0:00:07]} 29. Rba1 {[%emt 0:01:58]} Kf7 {[%emt 0:00:23]} 30. Rxa7 {[%emt 0:00:19]} Re1+ {[%emt 0:00:22]} 31. Rxe1 {[%emt 0:00:10]} Rxa7 {[%emt 0:00:05]} 32. Kg1 {[%emt 0:00:26]} h6 {[%emt 0:03:09]} 33. b4 {[%emt 0:00:19]} Ra2 {[%emt 0:04:55]} 34. Re2 {[%emt 0:00:32]} Ra1+ {[%emt 0:00:39]} 35. Kf2 {[%emt 0:00:12]} Rh1 {[%emt 0:00:34]} 36. Rd2 {[%emt 0:04:06]} h5 {[%emt 0:01:32]} 37. Re2 {[%emt 0:00:33]} Rd1 {[%emt 0:00:20]} 38. Rc2 {[%emt 0:00:49]} Rd3 {[%emt 0:00:12]} 39. Ke2 {[%emt 0:00:47]} Re3+ {[%emt 0:00:10]} 40. Kf2 {[%emt 0:00:00]} Kf6 {[%emt 0:00:00]} 41. Rd2 {[%emt 0:02:27]} Kf5 {[%emt 0:01:35]} 42. b5 {[%emt 0:01:36]} cxb5 {[%emt 0:04:47]} 43. Rxd5+ {[%emt 0:00:14]} Re5 {[%emt 0:00:02]} 44. Rd7 {[%emt 0:01:14]} c5 {[%emt 0:00:10]} 45. Rb7 {[%emt 0:06:11]} c4 {[%emt 0:00:41]} 46. Rb6 {[%emt 0:00:55]} Rd5 {[%emt 0:02:43]} 47. Ke2 {[%emt 0:00:33]} g4 {[%emt 0:00:40]} 48. hxg4+ {[%emt 0:00:24]} hxg4 {[%emt 0:00:04]} 49. Rb8 {[%emt 0:04:26]} Re5+ {[%emt 0:01:04]} 50. Kd2 {[%emt 0:01:28]} gxf3 {[%emt 0:06:16]} 51. gxf3 {[%emt 0:00:23]} Kg5 {[%emt 0:00:08]} 52. Rg8+ {[%emt 0:00:22]} Kh6 {[%emt 0:03:22]} 53. Rg4 {[%emt 0:00:35]} Rf5 54. Kc2 Kh5 55. b3 cxb3+ 56. Kxb3 Kh6 57. Kb4 Kh5 58. Rg8 Kh4 59. Rg4+ Kh5 60. c4 bxc4 61. Kxc4 Kh6 62. Kd4 Kh5 63. Ke4 Ra5 64. Rxf4 Ra1 65. Rf8 Re1+ 66. Kf5 Kh4 67. f4 Kg3 68. Rg8+ Kf3 69. Rh8 Rf1 70. Rh3+ Kg2 71. Ra3 1/2-1/2

[Event "IIFL Wealth  4th Mumbai Junior U-13"]
[Site "Mumbai"]
[Date "2019.01.07"]
[Round "9"]
[White "Swara Lakshmi S Nair"]
[Black "Kinkhabwala Hrithik"]
[Result "1-0"]
[ECO "C45"]
[WhiteElo "1359"]
[BlackElo "1244"]
[Annotator "NA RC"]
[PlyCount "88"]
[EventDate "2018.12.30"]
[EventType "swiss"]
[EventCountry "IND"]
[SourceTitle "playchess.com"]
[Source "ChessBase"]
[SourceQuality "1"]
[TimeControl "40/5400+30:1800+30"]

1. e4 {[%emt 0:00:52]} e5 {[%emt 0:00:00]} 2. Nf3 {[%emt 0:01:44]} Nc6 {[%emt 0:00:00]} 3. d4 {[%emt 0:01:44]} exd4 {[%emt 0:00:00]} 4. Nxd4 {[%emt 0:01:47]} Bc5 {[%emt 0:00:00]} 5. Nb3 {[%emt 0:03:11]} Bb6 {[%emt 0:00:00]} 6. Nc3 {[%emt 0:06:01]} Nf6 {[%emt 0:00:49]} 7. Bg5 {[%emt 0:01:51]} d6 {[%emt 0:03:00]} 8. Qe2 {[%emt 0:03:14]} O-O {[%emt 0:05:16]} 9. O-O-O {[%emt 0:03:17]} h6 {[%emt 0:04:54]} 10. Bh4 {[%emt 0:01:15]} Be6 {[%emt 0:04:31]} 11. Kb1 {[%emt 0:04:20]} a5 {[%emt 0:04:19]} 12. a4 {[%emt 0:00:53]} Re8 {[%emt 0:04:29]} 13. f3 {[%emt 0:04:12]} Ne5 {[%emt 0:16:16]} 14. Bf2 {[%emt 0:12:31]} Bxb3 {[%emt 0:25:50]} 15. cxb3 {[%emt 0:00:09]} Ra6 {[%emt 0:01:30]} 16. g4 {[%emt 0:05:27]} Bxf2 {[%emt 0:02:07]} 17. Qxf2 {[%emt 0:02:49]} Rb6 {[%emt 0:00:49]} 18. Ka2 {[%emt 0:01:06]} Qe7 {[%emt 0:04:49]} 19. Bb5 {[%emt 0:00:54]} Nc6 {[%emt 0:03:04]} 20. h4 Nb4+ {[%emt 0:02:42]} 21. Kb1 {[%emt 0:06:36]} Nd7 {[%emt 0:00:42]} 22. g5 {[%emt 0:11:56]} h5 {[%emt 0:04:03]} 23. f4 {[%emt 0:02:02]} g6 {[%emt 0:03:04]} 24. f5 {[%emt 0:00:43]} c6 {[%emt 0:02:10]} 25. Bc4 {[%emt 0:00:06]} Kh7 {[%emt 0:00:43]} 26. Rhf1 {[%emt 0:00:55]} Nc5 {[%emt 0:03:04]} 27. fxg6+ {[%emt 0:02:58]} fxg6 {[%emt 0:00:19]} 28. Rxd6 {[%emt 0:08:30]} Nxe4 {[%emt 0:03:22]} 29. Qf7+ {[%emt 0:00:08]} Kh8 {[%emt 0:00:40]} 30. Qxe7 {[%emt 0:00:33]} Nxc3+ {[%emt 0:01:11]} 31. bxc3 {[%emt 0:00:38]} Rxe7 {[%emt 0:00:14]} 32. Rxg6 Nd5 {[%emt 0:01:21]} 33. Bxd5 {[%emt 0:01:00]} cxd5 {[%emt 0:00:09]} 34. Rxb6 {[%emt 0:01:12]} Kg7 {[%emt 0:00:34]} 35. Rb5 {[%emt 0:00:41]} Re4 {[%emt 0:00:37]} 36. Rxb7+ {[%emt 0:00:17]} Kg8 {[%emt 0:00:16]} 37. Rd1 {[%emt 0:00:20]} Rxh4 {[%emt 0:00:40]} 38. Rxd5 {[%emt 0:00:09]} Rf4 {[%emt 0:00:07]} 39. Rd8+ {[%emt 0:00:42]} Rf8 {[%emt 0:00:02]} 40. Rxf8+ {[%emt 0:00:00]} Kxf8 {[%emt 0:00:00]} 41. Rh7 {[%emt 0:00:17]} h4 {[%emt 0:00:14]} 42. c4 {[%emt 0:00:16]} h3 {[%emt 0:00:07]} 43. c5 {[%emt 0:00:07]} h2 {[%emt 0:00:04]} 44. c6 {[%emt 0:00:04]} h1=Q+ {[%emt 0:00:00] Rh5 Qh2 Rxh2 Ke8 [%clk 0:34:06] Rh7 [%clk 0:45:20] Kd8 [%clk 0:34:27] g6 [%clk 0:45:31] Kc8 [%clk 0:34:50] Rd7 [%clk 0:45:49] Kb8 [%clk 0:35:14] g7 [%clk 0:46:11] Ka8 [%clk 0:35:41] g8=Q# [%clk 0:46:29]} 1-0

[Event "IIFL Wealth  4th Mumbai Junior U-13"]
[Site "Mumbai"]
[Date "2019.01.07"]
[Round "9"]
[White "Jadhav Jyotiraditya"]
[Black "Warsia, Khusbu"]
[Result "1-0"]
[ECO "D50"]
[WhiteElo "1358"]
[BlackElo "1107"]
[Annotator "NA RC"]
[PlyCount "135"]
[EventDate "2018.12.30"]
[EventType "swiss"]
[EventCountry "IND"]
[SourceTitle "playchess.com"]
[Source "ChessBase"]
[SourceQuality "1"]
[TimeControl "40/5400+30:1800+30"]

1. d4 {[%emt 0:00:00]} Nf6 {[%emt 0:00:56]} 2. c4 {[%emt 0:00:00]} e6 {[%emt 0:00:09]} 3. Nc3 {[%emt 0:00:00]} d5 {[%emt 0:01:18]} 4. Bg5 {[%emt 0:00:00]} Bb4 {[%emt 0:03:12]} 5. Nf3 {[%emt 0:01:03]} Nc6 {[%emt 0:02:23]} 6. e3 {[%emt 0:00:34]} O-O {[%emt 0:03:15]} 7. cxd5 {[%emt 0:01:42]} exd5 {[%emt 0:03:56]} 8. Bd3 {[%emt 0:00:25]} h6 {[%emt 0:01:00]} 9. Bh4 {[%emt 0:00:44]} Be6 {[%emt 0:03:56]} 10. O-O {[%emt 0:01:07]} a6 {[%emt 0:06:21]} 11. Rc1 {[%emt 0:01:28]} Be7 12. a3 {[%emt 0:04:32]} Nd7 {[%emt 0:04:54]} 13. Bxe7 {[%emt 0:00:45]} Qxe7 {[%emt 0:02:13]} 14. Re1 {[%emt 0:02:20]} Nb6 {[%emt 0:02:17]} 15. Qc2 {[%emt 0:05:28]} Qf6 {[%emt 0:02:03]} 16. Kh1 {[%emt 0:13:15]} Rad8 {[%emt 0:01:30]} 17. Nb1 {[%emt 0:02:24]} Bd7 {[%emt 0:02:51]} 18. Nbd2 {[%emt 0:02:06]} a5 {[%emt 0:08:15]} 19. Nb3 {[%emt 0:06:28]} Na4 {[%emt 0:02:05]} 20. Bb5 {[%emt 0:08:34]} Nb4 {[%emt 0:09:04]} 21. axb4 {[%emt 0:00:33]} Bxb5 {[%emt 0:00:11]} 22. bxa5 {[%emt 0:01:10]} c6 {[%emt 0:04:21]} 23. Nbd2 {[%emt 0:03:17]} Qd6 {[%emt 0:01:51]} 24. b3 {[%emt 0:00:56]} Qb4 {[%emt 0:06:01]} 25. bxa4 {[%emt 0:01:15]} Bxa4 {[%emt 0:00:36]} 26. Qc5 {[%emt 0:01:07]} Qxc5 {[%emt 0:01:08]} 27. dxc5 {[%emt 0:00:57]} Ra8 {[%emt 0:00:17]} 28. Rb1 {[%emt 0:01:15]} Bb5 {[%emt 0:01:04]} 29. Nd4 {[%emt 0:00:37]} Rxa5 {[%emt 0:01:18]} 30. N2b3 {[%emt 0:01:12]} Ra4 {[%emt 0:02:07]} 31. Nxb5 {[%emt 0:00:09]} cxb5 {[%emt 0:00:39]} 32. Red1 {[%emt 0:00:16]} Rd8 {[%emt 0:00:40]} 33. Nd4 {[%emt 0:00:18]} Ra2 {[%emt 0:01:39]} 34. Kg1 {[%emt 0:02:10]} Ra5 {[%emt 0:00:51]} 35. Nxb5 {[%emt 0:00:56]} Kf8 {[%emt 0:01:27]} 36. Nd6 {[%emt 0:00:45]} Rd7 {[%emt 0:02:19]} 37. Nxb7 {[%emt 0:01:17]} Ra7 {[%emt 0:00:56]} 38. c6 {[%emt 0:01:42]} Rc7 {[%emt 0:00:07]} 39. Rxd5 {[%emt 0:02:57]} Rxc6 {[%emt 0:00:26]} 40. g3 {[%emt 0:00:00]} Rc7 {[%emt 0:00:00]} 41. Nc5 {[%emt 0:01:55]} Ke7 {[%emt 0:01:54]} 42. Nd3 {[%emt 0:01:43]} Rd7 {[%emt 0:00:57]} 43. Rxd7+ {[%emt 0:00:29]} Rxd7 {[%emt 0:00:08]} 44. Ne1 {[%emt 0:00:27]} Ke6 {[%emt 0:00:08]} 45. Kf1 {[%emt 0:00:11]} Ke5 {[%emt 0:00:05]} 46. Ke2 {[%emt 0:00:07]} f5 {[%emt 0:00:05]} 47. Nd3+ {[%emt 0:00:11]} Kf6 {[%emt 0:00:11]} 48. Rb6+ {[%emt 0:00:05]} Ke7 {[%emt 0:00:29]} 49. Rb5 {[%emt 0:00:38]} g6 {[%emt 0:01:19]} 50. Rb6 {[%emt 0:00:07]} Rd6 {[%emt 0:00:41]} 51. Rxd6 {[%emt 0:00:06]} Kxd6 {[%emt 0:00:05]} 52. Kf3 {[%emt 0:00:52]} g5 {[%emt 0:00:41]} 53. g4 {[%emt 0:00:31]} Ke6 {[%emt 0:00:20]} 54. gxf5+ {[%emt 0:00:09]} Kxf5 {[%emt 0:00:07]} 55. e4+ {[%emt 0:00:02]} Ke6 {[%emt 0:00:20]} 56. Kg4 {[%emt 0:00:08]} Kf6 {[%emt 0:00:47]} 57. Kh5 {[%emt 0:00:11]} Kg7 {[%emt 0:00:12]} 58. e5 {[%emt 0:00:05]} Kf7 {[%emt 0:00:23]} 59. Kxh6 {[%emt 0:00:37]} Ke7 {[%emt 0:00:57]} 60. Kxg5 {[%emt 0:00:10]} Ke6 {[%emt 0:00:10]} 61. h4 {[%emt 0:00:12]} Kf7 {[%emt 0:00:08]} 62. h5 {[%emt 0:00:07]} Ke7 {[%emt 0:00:11]} 63. h6 {[%emt 0:00:05]} Kf7 {[%emt 0:00:05]} 64. f4 {[%emt 0:00:05]} Kg8 {[%emt 0:00:12]} 65. Kg6 {[%emt 0:00:09]} Kh8 {[%emt 0:00:06]} 66. e6 {[%emt 0:00:18]} Kg8 {[%emt 0:00:06]} 67. e7 {[%emt 0:00:11]} Kh8 {[%emt 0:00:12]} 68. e8=R# {[%emt 0:00:07]} 1-0

[Event "IIFL Wealth  4th Mumbai Junior U-13"]
[Site "Mumbai"]
[Date "2019.01.07"]
[Round "9"]
[White "Khairmode Aditya"]
[Black "Medhansh Rathi"]
[Result "0-1"]
[ECO "C51"]
[WhiteElo "1337"]
[BlackElo "1194"]
[Annotator "NA RC"]
[PlyCount "141"]
[EventDate "2018.12.30"]
[EventType "swiss"]
[EventCountry "IND"]
[SourceTitle "playchess.com"]
[Source "ChessBase"]
[SourceQuality "1"]
[TimeControl "40/5400+30:1800+30"]

1. e4 {[%emt 0:00:00]} e5 {[%emt 0:00:06]} 2. Nf3 {[%emt 0:00:05]} Nc6 {[%emt 0:00:14]} 3. Bc4 {[%emt 0:00:08]} Bc5 {[%emt 0:00:36]} 4. b4 {[%emt 0:02:30]} Bxb4 {[%emt 0:00:10]} 5. c3 {[%emt 0:00:08]} Be7 {[%emt 0:00:02]} 6. d4 {[%emt 0:00:22]} exd4 {[%emt 0:01:45]} 7. Qb3 {[%emt 0:00:57]} Na5 {[%emt 0:01:04]} 8. Bxf7+ {[%emt 0:00:07]} Kf8 {[%emt 0:00:07]} 9. Qa4 {[%emt 0:00:18]} Kxf7 {[%emt 0:01:43]} 10. Qxa5 {[%emt 0:00:07]} d6 {[%emt 0:00:43]} 11. cxd4 {[%emt 0:06:14]} c6 {[%emt 0:04:38]} 12. Qa4 {[%emt 0:11:01]} Be6 {[%emt 0:02:21]} 13. O-O {[%emt 0:06:23]} Qd7 {[%emt 0:09:23]} 14. Nc3 {[%emt 0:17:20]} h6 {[%emt 0:07:26]} 15. Qc2 {[%emt 0:14:59]} Rf8 {[%emt 0:05:34]} 16. Re1 {[%emt 0:12:46]} Ke8 {[%emt 0:02:16]} 17. e5 {[%emt 0:02:27]} Bf5 {[%emt 0:00:37]} 18. Qa4 {[%emt 0:05:43]} d5 {[%emt 0:00:53]} 19. Qxa7 {[%emt 0:02:04]} Qc8 {[%emt 0:01:30]} 20. Ba3 {[%emt 0:02:00]} Bxa3 {[%emt 0:00:26]} 21. Qxa3 {[%emt 0:00:10]} Ne7 {[%emt 0:00:26]} 22. Rac1 {[%emt 0:00:43]} Qd7 {[%emt 0:00:35]} 23. Qd6 {[%emt 0:06:37]} Nc8 {[%emt 0:01:34]} 24. Qxd7+ {[%emt 0:01:02]} Kxd7 {[%emt 0:00:11]} 25. e6+ {[%emt 0:01:03]} Ke7 {[%emt 0:00:58]} 26. Nh4 {[%emt 0:03:07]} Bh7 {[%emt 0:01:18]} 27. Na4 {[%emt 0:01:44]} Rf6 {[%emt 0:01:22]} 28. Nc5 {[%emt 0:00:43]} Nd6 {[%emt 0:00:19]} 29. Rc3 {[%emt 0:02:09]} g5 {[%emt 0:00:35]} 30. Nf3 {[%emt 0:00:07]} Ne4 {[%emt 0:00:41]} 31. Rb3 {[%emt 0:01:05]} Nxc5 {[%emt 0:00:21]} 32. dxc5 {[%emt 0:00:06]} Rb8 {[%emt 0:00:07]} 33. Nd4 {[%emt 0:00:39]} Rff8 {[%emt 0:00:38]} 34. Re2 {[%emt 0:00:51]} Bf5 {[%emt 0:01:02]} 35. Reb2 {[%emt 0:00:45]} Bxe6 {[%emt 0:00:43]} 36. Re2 {[%emt 0:00:41]} Kd7 {[%emt 0:01:06]} 37. Nxe6 {[%emt 0:00:32]} Rfe8 {[%emt 0:00:13]} 38. Nd4 {[%emt 0:00:13]} Rxe2 {[%emt 0:00:12]} 39. Nxe2 {[%emt 0:00:11]} Ke6 {[%emt 0:00:07]} 40. f3 {[%emt 0:00:00]} Ke5 {[%emt 0:00:00]} 41. Kf2 {[%emt 0:01:01]} d4 {[%emt 0:00:07]} 42. Rb4 {[%emt 0:01:30]} Kd5 {[%emt 0:00:19]} 43. Rxd4+ {[%emt 0:00:15]} Kxc5 {[%emt 0:00:01]} 44. Ke3 {[%emt 0:00:30]} Re8+ {[%emt 0:00:10]} 45. Re4 {[%emt 0:00:10]} Ra8 {[%emt 0:00:15]} 46. a4 {[%emt 0:01:24]} b5 {[%emt 0:00:28]} 47. axb5 {[%emt 0:04:09]} cxb5 {[%emt 0:00:01]} 48. Kd3 {[%emt 0:01:08]} Rd8+ {[%emt 0:00:29]} 49. Kc3 {[%emt 0:00:13]} Rd1 {[%emt 0:00:18]} 50. Re6 {[%emt 0:00:33]} b4+ {[%emt 0:00:25]} 51. Kc2 {[%emt 0:01:02]} Rd6 {[%emt 0:00:17]} 52. Rxd6 {[%emt 0:00:09]} Kxd6 {[%emt 0:00:03]} 53. Kb3 {[%emt 0:00:04]} Ke5 {[%emt 0:00:23]} 54. Kxb4 {[%emt 0:00:11]} Kf5 {[%emt 0:00:05]} 55. Kc4 {[%emt 0:00:17]} g4 {[%emt 0:00:05]} 56. Kd4 {[%emt 0:00:17]} h5 {[%emt 0:00:07]} 57. Ng3+ {[%emt 0:00:26]} Kg5 {[%emt 0:00:12]} 58. Ke5 {[%emt 0:00:55]} gxf3 {[%emt 0:00:12]} 59. gxf3 {[%emt 0:00:28]} Kh4 {[%emt 0:00:01]} 60. f4 {[%emt 0:00:28]} Kh3 {[%emt 0:00:08]} 61. f5 {[%emt 0:01:16]} h4 {[%emt 0:00:08]} 62. Nf1 {[%emt 0:02:07]} Kg2 {[%emt 0:00:02]} 63. f6 {[%emt 0:00:33]} Kxf1 {[%emt 0:00:07]} 64. f7 {[%emt 0:00:13]} Kg2 {[%emt 0:00:01]} 65. f8=Q {[%emt 0:00:17]} Kxh2 {[%emt 0:00:01]} 66. Qf2+ {[%emt 0:00:23]} Kh3 {[%emt 0:00:14]} 67. Qf3+ {[%emt 0:00:22]} Kh2 {[%emt 0:00:02]} 68. Kf4 {[%emt 0:00:23]} h3 {[%emt 0:00:22]} 69. Kg4 {[%emt 0:00:15]} Kg1 {[%emt 0:00:01]} 70. Kg3 {[%emt 0:00:11]} h2 {[%emt 0:00:10]} 71. Qg2# {[%emt 0:00:11]} 0-1